fUST/lending_fUST_20260613
["ID","MTS","AMOUNT","RATE_DAILY","PERIOD"]
[424954209,1781345443000,-151.5,0.00027626,2]
[424954207,1781345443000,-151.5,0.00027626,2]
[424954206,1781345443000,-500.0,0.00027626,2]
[424954211,1781345443000,-184.04363609,0.00027626,2]
[424954212,1781345443000,-500.0,0.00027626,2]
[424954210,1781345443000,-467.09391694,0.00027626,2]
[424954214,1781345443000,-500.0,0.00027626,2]
[424954213,1781345443000,-500.0,0.00027626,2]
[424954208,1781345443000,-500.0,0.00027626,2]
[424954244,1781345444000,-622.1303663,0.00027898,2]
[424954238,1781345444000,-622.1303663,0.00027898,2]
[424954239,1781345444000,-622.1303663,0.00027898,2]
[424954236,1781345444000,-622.1303663,0.00027898,2]
[424954240,1781345444000,-622.1303663,0.00027898,2]
[424954243,1781345444000,-622.1303663,0.00027898,2]
[424954235,1781345444000,-389.6998917,0.00027898,2]
[424954246,1781345444000,-626.57415463,0.00027898,2]
[424954245,1781345444000,-626.57415463,0.00027898,2]
[424954241,1781345444000,-622.1303663,0.00027898,2]
[424954242,1781345444000,-622.1303663,0.00027898,2]
[424954237,1781345444000,-622.1303663,0.00027898,2]
[424954247,1781345444000,-626.57415463,0.00027898,2]
[424954257,1781345444000,-807.58446596,0.00027898,2]
[424954250,1781345444000,-626.57415463,0.00027898,2]
[424954259,1781345444000,-807.58446596,0.00027898,2]
[424954261,1781345444000,-7088.7351459,0.00027899,2]
[424954260,1781345444000,-22840.95845252,0.00027899,2]
[424954258,1781345444000,-807.58446596,0.00027898,2]
[424954256,1781345444000,-626.57415463,0.00027898,2]
[424954248,1781345444000,-626.57415463,0.00027898,2]
[424954253,1781345444000,-626.57415463,0.00027898,2]
[424954254,1781345444000,-626.57415463,0.00027898,2]
[424954252,1781345444000,-626.57415463,0.00027898,2]
[424954251,1781345444000,-626.57415463,0.00027898,2]
[424954249,1781345444000,-626.57415463,0.00027898,2]
[424954255,1781345444000,-626.57415463,0.00027898,2]
[424954262,1781345446000,-3356.01725342,0.0002633,2]
[424954263,1781345446000,-6365.28334089,0.00027899,2]
[424954748,1781346632000,-309.82598484,0.00017279,2]
[424954751,1781346632000,-1000.0,0.00024009,2]
[424954747,1781346632000,-1699.416231,0.00017279,2]
[424954752,1781346632000,-499.23179932,0.00024009,2]
[424954750,1781346632000,-1000.0,0.00024009,2]
[424954749,1781346632000,-181.7,0.00017808,2]
[424954822,1781346646000,-500.76820068,0.00024009,2]
[424954829,1781346647000,-228.59,0.00024464,2]
[424954840,1781346647000,-807.45,0.00025443,2]
[424954841,1781346647000,-500.0,0.00025443,2]
[424954837,1781346647000,-212.74354282,0.00025268,2]
[424954836,1781346647000,-166.0911,0.00024922,2]
[424954835,1781346647000,-174.65,0.00024664,2]
[424954834,1781346647000,-174.65,0.00024564,2]
[424954826,1781346647000,-189.016352,0.00024225,2]
[424954832,1781346647000,-186.0,0.00024474,2]
[424954828,1781346647000,-174.65,0.00024364,2]
[424954825,1781346647000,-561.9850397,0.00024077,2]
[424954831,1781346647000,-3463.0,0.00024474,2]
[424954833,1781346647000,-445.0,0.00024474,2]
[424954823,1781346647000,-750.0,0.00024009,2]
[424954838,1781346647000,-152.0,0.00025439,7]
[424954824,1781346647000,-269.2443209,0.00024077,2]
[424954830,1781346647000,-174.65,0.00024464,2]
[424954827,1781346647000,-228.59,0.00024364,2]
[424954847,1781346647000,-156.19470291,0.00025734,2]
[424954839,1781346647000,-336.424,0.00025439,10]
[424954862,1781346647000,-1104.34126307,0.00026,2]
[424954846,1781346647000,-158.96943483,0.00025734,2]
[424954861,1781346647000,-5000.0,0.00026,2]
[424954860,1781346647000,-5000.0,0.00026,2]
[424954859,1781346647000,-156.56085277,0.0002574,2]
[424954858,1781346647000,-162.10062946,0.0002574,2]
[424954857,1781346647000,-159.97370663,0.0002574,2]
[424954856,1781346647000,-159.55834501,0.0002574,2]
[424954853,1781346647000,-154.70230024,0.00025734,2]
[424954855,1781346647000,-164.24619909,0.00025734,2]
[424954843,1781346647000,-152.0,0.00025452,7]
[424954852,1781346647000,-151.0,0.00025734,6]
[424954851,1781346647000,-162.69230632,0.00025734,2]
[424954850,1781346647000,-164.87867816,0.00025734,2]
[424954849,1781346647000,-156.07960321,0.00025734,2]
[424954848,1781346647000,-162.91201068,0.00025734,2]
[424954844,1781346647000,-217.34,0.0002547,7]
[424954845,1781346647000,-152.0,0.00025503,7]
[424954842,1781346647000,-17305.4643,0.00025444,2]
[424954854,1781346647000,-187.95664372,0.00025734,2]
[424954863,1781346787000,151.34,0.0002411,30]
[424954920,1781347828000,-5000.0,0.00017805,2]
[424954921,1781347828000,-5000.0,0.00017985,2]
[424954941,1781347832000,-1417.531,0.00024577,2]
[424954952,1781347832000,-300.0,0.00025178,2]
[424954940,1781347832000,-198.8,0.0002447,2]
[424954942,1781347832000,-155.0,0.00024577,2]
[424954939,1781347832000,-178.0,0.0002445,2]
[424954938,1781347832000,-198.8,0.0002437,2]
[424954932,1781347832000,-375.42223193,0.00018544,2]
[424954936,1781347832000,-194.09290745,0.00023906,2]
[424954934,1781347832000,-176.747651,0.00023766,2]
[424954937,1781347832000,-417.15472785,0.00024,3]
[424954933,1781347832000,-167.98124551,0.00021604,2]
[424954930,1781347832000,-5000.0,0.00018167,2]
[424954931,1781347832000,-392.99641462,0.00018351,2]
[424954935,1781347832000,-156.27669235,0.00023906,2]
[424954943,1781347832000,-223.217,0.00024577,2]
[424954944,1781347832000,-151.145,0.00024577,2]
[424954947,1781347832000,-511.72338197,0.00024999,2]
[424954951,1781347832000,-747.90023881,0.00025178,2]
[424954959,1781347832000,-438.36629189,0.00025344,2]
[424954957,1781347832000,-438.3662919,0.00025343,2]
[424954956,1781347832000,-1185.01748965,0.00025178,2]
[424954961,1781347832000,-533.10391039,0.00025344,2]
[424954958,1781347832000,-438.36629189,0.00025343,2]
[424954960,1781347832000,-438.36629189,0.00025344,2]
[424954955,1781347832000,-1139.47296316,0.00025178,2]
[424954954,1781347832000,-83.20752998,0.00025178,2]
[424954953,1781347832000,-358.05528406,0.00025178,2]
[424954950,1781347832000,-417.15472785,0.00025,10]
[424954946,1781347832000,-312.5533847,0.00024775,2]
[424954948,1781347832000,-500.0,0.00024999,2]
[424954949,1781347832000,-773.81,0.00024999,2]
[424954945,1781347832000,-184.29990332,0.00024775,2]
[424955026,1781347838000,-209.07378377,0.00025344,2]
[424955027,1781347838000,-438.36629189,0.00025344,2]
[424955028,1781347838000,-368.59980664,0.00025354,2]
[424955029,1781347838000,-408.61664726,0.00025354,2]
[424955030,1781347838000,-239.00083286,0.00025354,2]
[424955072,1781347839000,-500.0,0.00025442,2]
[424955062,1781347839000,-500.0,0.00025442,2]
[424955064,1781347839000,-500.0,0.00025442,2]
[424955065,1781347839000,-500.0,0.00025442,2]
[424955066,1781347839000,-500.0,0.00025442,2]
[424955068,1781347839000,-500.0,0.00025442,2]
[424955069,1781347839000,-500.0,0.00025442,2]
[424955073,1781347839000,-500.0,0.00025442,2]
[424955070,1781347839000,-500.0,0.00025442,2]
[424955071,1781347839000,-500.0,0.00025442,2]
[424955067,1781347839000,-500.0,0.00025442,2]
[424955074,1781347839000,-500.0,0.00025442,2]
[424955081,1781347839000,-1006.23381963,0.00025443,2]
[424955076,1781347839000,-773.81,0.00025442,2]
[424955079,1781347839000,-1006.23381963,0.00025443,2]
[424955082,1781347839000,-1006.23381963,0.00025443,2]
[424955078,1781347839000,-1006.23381963,0.00025443,2]
[424955080,1781347839000,-1006.23381963,0.00025443,2]
[424955083,1781347839000,-1006.23381963,0.00025443,2]
[424955084,1781347839000,-1006.23381963,0.00025443,2]
[424955077,1781347839000,-413.56915474,0.00025443,2]
[424955063,1781347839000,-500.0,0.00025442,2]
[424955087,1781347839000,-1006.23381963,0.00025443,2]
[424955085,1781347839000,-1006.23381963,0.00025443,2]
[424955086,1781347839000,-1006.23381963,0.00025443,2]
[424955088,1781347839000,-1006.23381963,0.00025443,2]
[424955075,1781347839000,-500.0,0.00025442,2]
[424955059,1781347839000,-500.0,0.00025442,2]
[424955050,1781347839000,-500.0,0.00025442,2]
[424955058,1781347839000,-500.0,0.00025442,2]
[424955036,1781347839000,-500.0,0.00025441,2]
[424955033,1781347839000,-186.07727182,0.00025354,2]
[424955035,1781347839000,-269.139,0.00025363,10]
[424955032,1781347839000,-468.83007705,0.00025354,2]
[424955031,1781347839000,-161.38572406,0.00025354,2]
[424955034,1781347839000,-382.93702492,0.00025363,2]
[424955038,1781347839000,-500.0,0.00025442,2]
[424955037,1781347839000,-773.81,0.00025441,2]
[424955040,1781347839000,-500.0,0.00025442,2]
[424955039,1781347839000,-184.41647683,0.00025442,2]
[424955042,1781347839000,-500.0,0.00025442,2]
[424955044,1781347839000,-500.0,0.00025442,2]
[424955045,1781347839000,-500.0,0.00025442,2]
[424955043,1781347839000,-500.69312639,0.00025442,2]
[424955046,1781347839000,-516.46086959,0.00025442,2]
[424955041,1781347839000,-500.0,0.00025442,2]
[424955047,1781347839000,-500.0,0.00025442,2]
[424955049,1781347839000,-500.0,0.00025442,2]
[424955048,1781347839000,-500.0,0.00025442,2]
[424955052,1781347839000,-559.0104702,0.00025442,2]
[424955054,1781347839000,-500.0,0.00025442,2]
[424955061,1781347839000,-500.0,0.00025442,2]
[424955051,1781347839000,-271.73538769,0.00025442,2]
[424955053,1781347839000,-500.0,0.00025442,2]
[424955060,1781347839000,-500.0,0.00025442,2]
[424955090,1781347839000,-1006.23381963,0.00025443,2]
[424955056,1781347839000,-500.0,0.00025442,2]
[424955057,1781347839000,-500.0,0.00025442,2]
[424955091,1781347839000,-1006.23381963,0.00025443,2]
[424955055,1781347839000,-500.0,0.00025442,2]
[424955092,1781347839000,-1006.23381963,0.00025443,2]
[424955125,1781347839000,-151.0,0.00025443,2]
[424955126,1781347839000,-773.81,0.00025443,2]
[424955128,1781347839000,-773.81,0.00025443,2]
[424955127,1781347839000,-773.81,0.00025443,2]
[424955130,1781347839000,-773.81,0.00025443,2]
[424955136,1781347839000,-773.81,0.00025443,2]
[424955137,1781347839000,-773.81,0.00025443,2]
[424955129,1781347839000,-773.81,0.00025443,2]
[424955134,1781347839000,-773.81,0.00025443,2]
[424955131,1781347839000,-773.81,0.00025443,2]
[424955132,1781347839000,-151.0,0.00025443,2]
[424955133,1781347839000,-773.81,0.00025443,2]
[424955135,1781347839000,-773.81,0.00025443,2]
[424955139,1781347839000,-773.81,0.00025443,2]
[424955138,1781347839000,-773.81,0.00025443,2]
[424955140,1781347839000,-773.81,0.00025443,2]
[424955141,1781347839000,-773.81,0.00025443,2]
[424955143,1781347839000,-773.81,0.00025443,2]
[424955145,1781347839000,-773.81,0.00025443,2]
[424955144,1781347839000,-773.81,0.00025443,2]
[424955142,1781347839000,-773.81,0.00025443,2]
[424955147,1781347839000,-773.81977127,0.00025443,2]
[424955146,1781347839000,-773.81,0.00025443,2]
[424955149,1781347839000,-58411.89478892,0.00025444,2]
[424955148,1781347839000,-123009.11412595,0.00025444,2]
[424955151,1781347839000,-266802.33843693,0.00025444,2]
[424955150,1781347839000,-17781.3577482,0.00025444,2]
[424955124,1781347839000,-203.71472788,0.00025443,2]
[424955123,1781347839000,-151.0,0.00025443,2]
[424955089,1781347839000,-1006.23381963,0.00025443,2]
[424955120,1781347839000,-151.0,0.00025443,2]
[424955094,1781347839000,-1006.23381963,0.00025443,2]
[424955098,1781347839000,-1021.71433993,0.00025443,2]
[424955093,1781347839000,-1006.23381963,0.00025443,2]
[424955097,1781347839000,-1021.71433993,0.00025443,2]
[424955095,1781347839000,-162.068237,0.00025443,2]
[424955099,1781347839000,-1021.71433993,0.00025443,2]
[424955096,1781347839000,-1021.71433993,0.00025443,2]
[424955101,1781347839000,-1021.71433993,0.00025443,2]
[424955100,1781347839000,-1021.71433993,0.00025443,2]
[424955103,1781347839000,-1021.71433993,0.00025443,2]
[424955102,1781347839000,-1021.71433993,0.00025443,2]
[424955105,1781347839000,-1021.71433993,0.00025443,2]
[424955104,1781347839000,-1021.71433993,0.00025443,2]
[424955106,1781347839000,-1359.53924265,0.00025443,2]
[424955119,1781347839000,-151.0,0.00025443,2]
[424955110,1781347839000,-154.059017,0.00025443,2]
[424955121,1781347839000,-151.0,0.00025443,2]
[424955122,1781347839000,-151.0,0.00025443,2]
[424955116,1781347839000,-151.0,0.00025443,2]
[424955107,1781347839000,-1359.53924265,0.00025443,2]
[424955117,1781347839000,-151.0,0.00025443,2]
[424955114,1781347839000,-151.0,0.00025443,2]
[424955118,1781347839000,-151.0,0.00025443,2]
[424955113,1781347839000,-151.0,0.00025443,2]
[424955108,1781347839000,-151.0,0.00025443,2]
[424955112,1781347839000,-151.0,0.00025443,2]
[424955109,1781347839000,-151.0,0.00025443,2]
[424955111,1781347839000,-151.0,0.00025443,2]
[424955115,1781347839000,-151.0,0.00025443,2]
[424955188,1781347840000,-3895.65873693,0.00026,2]
[424955194,1781347840000,-1000.0,0.00026124,2]
[424955196,1781347840000,-290.0,0.00026124,2]
[424955193,1781347840000,-1000.0,0.00026124,2]
[424955195,1781347840000,-800.0,0.00026124,2]
[424955186,1781347840000,-276.23854432,0.0002574,2]
[424955197,1781347840000,-276.9990796,0.00026124,2]
[424955192,1781347840000,-1000.0,0.00026124,2]
[424955190,1781347840000,-209.105658,0.00026099,2]
[424955189,1781347840000,-152.0,0.00026029,7]
[424955187,1781347840000,-201.33,0.0002574,2]
[424955198,1781347840000,-151.0,0.00026126,2]
[424955191,1781347840000,-290.0,0.00026124,2]
[424955199,1781347840000,-151.0,0.00026126,2]
[424955205,1781347840000,-167.422036,0.00026126,2]
[424955201,1781347840000,-151.0,0.00026126,2]
[424955202,1781347840000,-259.025646,0.00026126,2]
[424955207,1781347840000,-242.841716,0.00026126,2]
[424955211,1781347840000,-151.0,0.00026126,2]
[424955210,1781347840000,-151.0,0.00026126,2]
[424955206,1781347840000,-162.248851,0.00026126,2]
[424955209,1781347840000,-151.0,0.00026126,2]
[424955204,1781347840000,-151.0,0.00026126,2]
[424955203,1781347840000,-151.0,0.00026126,2]
[424955212,1781347840000,-781.38346176,0.00026126,2]
[424955208,1781347840000,-151.0,0.00026126,2]
[424955213,1781347840000,-970.46453725,0.00026126,2]
[424955181,1781347840000,-204.47983466,0.0002574,2]
[424955200,1781347840000,-151.0,0.00026126,2]
[424955183,1781347840000,-717.00249858,0.0002574,2]
[424955168,1781347840000,-612.92497089,0.0002574,2]
[424955178,1781347840000,-200.11256564,0.0002574,2]
[424955152,1781347840000,-151.0,0.00025444,2]
[424955154,1781347840000,-151.0,0.00025444,2]
[424955153,1781347840000,-151.0,0.00025444,2]
[424955156,1781347840000,-151.0,0.00025444,2]
[424955158,1781347840000,-151.0,0.00025444,2]
[424955155,1781347840000,-151.0,0.00025444,2]
[424955157,1781347840000,-151.0,0.00025444,2]
[424955159,1781347840000,-151.0,0.00025444,2]
[424955171,1781347840000,-176.89796287,0.0002574,2]
[424955160,1781347840000,-263.279516,0.00025444,2]
[424955162,1781347840000,-151.0,0.00025444,2]
[424955164,1781347840000,-4370.76487756,0.00025562,2]
[424955165,1781347840000,-184.44,0.00025713,2]
[424955170,1781347840000,-478.00166572,0.0002574,2]
[424955163,1781347840000,-222.65,0.0002547,7]
[424955169,1781347840000,-192.53319003,0.0002574,2]
[424955219,1781347840000,-160.0,0.00026363,2]
[424955166,1781347840000,-219.73201338,0.00025713,2]
[424955167,1781347840000,-552.89970996,0.0002574,2]
[424955173,1781347840000,-297.29070847,0.0002574,2]
[424955172,1781347840000,-322.77144811,0.0002574,2]
[424955184,1781347840000,-211.78538663,0.0002574,2]
[424955185,1781347840000,-184.14847678,0.0002574,2]
[424955174,1781347840000,-625.10676941,0.0002574,2]
[424955175,1781347840000,-372.15454364,0.0002574,2]
[424955182,1781347840000,-776.3716298,0.0002574,2]
[424955177,1781347840000,-254.15727676,0.0002574,2]
[424955179,1781347840000,-152.91612107,0.0002574,2]
[424955176,1781347840000,-232.37942362,0.0002574,2]
[424955180,1781347840000,-187.17458798,0.0002574,2]
[424955221,1781347840000,-212.82681981,0.000264,2]
[424955161,1781347840000,-151.0,0.00025444,2]
[424955216,1781347840000,-236.60213721,0.000263,2]
[424955309,1781347840000,-500.0,0.00027352,2]
[424955297,1781347840000,-151.0,0.00027156,2]
[424955312,1781347840000,-500.0,0.00027352,2]
[424955307,1781347840000,-151.0,0.00027352,2]
[424955305,1781347840000,-151.0,0.00027352,2]
[424955311,1781347840000,-500.0,0.00027352,2]
[424955295,1781347840000,-156.0,0.00027125,3]
[424955293,1781347840000,-156.0,0.00027125,3]
[424955300,1781347840000,-262.99699857,0.0002716,2]
[424955302,1781347840000,-209.105658,0.00027198,2]
[424955314,1781347840000,-500.0,0.00027352,2]
[424955316,1781347840000,-500.0,0.00027352,2]
[424955329,1781347840000,-151.5,0.00027352,2]
[424955331,1781347840000,-158.715259,0.00027397,2]
[424955336,1781347840000,-186.0,0.00027577,2]
[424955333,1781347840000,-236.60213721,0.000274,2]
[424955335,1781347840000,-1417.0,0.00027577,2]
[424955338,1781347840000,-182.49490418,0.00027605,6]
[424955320,1781347840000,-178.624404,0.00027352,2]
[424955322,1781347840000,-224.53921465,0.00027352,2]
[424955323,1781347840000,-151.5,0.00027352,2]
[424955326,1781347840000,-151.5,0.00027352,2]
[424955327,1781347840000,-151.5,0.00027352,2]
[424955340,1781347840000,-900.0,0.00027626,2]
[424955342,1781347840000,-600.0,0.00027626,2]
[424955344,1781347840000,-410.0,0.00027626,2]
[424955347,1781347840000,-168.91767351,0.00027699,2]
[424955346,1781347840000,-210.0,0.00027626,2]
[424955218,1781347840000,-417.15472785,0.00026363,2]
[424955298,1781347840000,-156.8110314,0.00027156,2]
[424955304,1781347840000,-151.0,0.00027352,2]
[424955318,1781347840000,-500.0,0.00027352,2]
[424955291,1781347840000,-166.0,0.00027125,3]
[424955215,1781347840000,-152.0,0.0002613,7]
[424955289,1781347840000,-166.0,0.00027125,3]
[424955217,1781347840000,-769.38344291,0.00026363,2]
[424955220,1781347840000,-199.10524345,0.000264,2]
[424955225,1781347840000,-236.60213721,0.000266,2]
[424955223,1781347840000,-340.68506167,0.00026503,2]
[424955224,1781347840000,-366.94189028,0.00026548,6]
[424955230,1781347840000,-199.10524345,0.000266,2]
[424955233,1781347840000,-151.0,0.000267,17]
[424955238,1781347840000,-151.0,0.00026792,2]
[424955236,1781347840000,-937.66015411,0.00026705,2]
[424955247,1781347840000,-236.60213721,0.000268,2]
[424955250,1781347840000,-151.0,0.00026846,2]
[424955241,1781347840000,-154.1331,0.00026792,2]
[424955252,1781347840000,-212.332695,0.00026846,2]
[424955244,1781347840000,-151.0,0.00026792,2]
[424955272,1781347840000,-288.10012874,0.00026997,2]
[424955280,1781347840000,-151.0,0.00027,2]
[424955278,1781347840000,-151.0,0.00027,2]
[424955288,1781347840000,-236.60213721,0.000271,2]
[424955286,1781347840000,-174.65,0.00027021,7]
[424955282,1781347840000,-151.0,0.00027,2]
[424955275,1781347840000,-27313.04748701,0.00027,2]
[424955254,1781347840000,-151.0,0.00026846,2]
[424955222,1781347840000,-298.39782679,0.00026503,2]
[424955269,1781347840000,-288.10012874,0.00026997,2]
[424955266,1781347840000,-288.10012874,0.00026997,2]
[424955263,1781347840000,-799.0,0.000269,2]
[424955260,1781347840000,-156.995201,0.00026846,2]
[424955257,1781347840000,-151.0,0.00026846,2]
[424955284,1781347840000,-168.371643,0.00027,2]
[424955420,1781347841000,-457.708004,0.00030137,2]
[424955418,1781347841000,-326.7384617,0.00030137,2]
[424955421,1781347841000,-457.708004,0.00030137,2]
[424955402,1781347841000,-5000.0,0.00029925,28]
[424955414,1781347841000,-456.8501494,0.00030137,2]
[424955386,1781347841000,-700.78408467,0.00029214,2]
[424955407,1781347841000,-28199.79956182,0.0003,2]
[424955403,1781347841000,-623.0,0.0003,120]
[424955405,1781347841000,-300.0,0.0003,120]
[424955400,1781347841000,-151.0,0.000299,17]
[424955410,1781347841000,-457.708004,0.00030137,2]
[424955389,1781347841000,-160.0,0.00029227,5]
[424955409,1781347841000,-5016.0,0.0003,2]
[424955412,1781347841000,-326.7384617,0.00030137,2]
[424955445,1781347841000,-326.7384617,0.00030959,2]
[424955423,1781347841000,-326.7384617,0.00030137,2]
[424955425,1781347841000,-457.708004,0.00030137,2]
[424955429,1781347841000,-457.708004,0.00030137,2]
[424955431,1781347841000,-326.7384617,0.00030137,2]
[424955432,1781347841000,-246.06,0.000302,2]
[424955427,1781347841000,-457.708004,0.00030137,2]
[424955434,1781347841000,-151.0,0.000304,15]
[424955443,1781347841000,-457.708004,0.00030959,2]
[424955441,1781347841000,-275.7864133,0.00030959,2]
[424955436,1781347841000,-209.105658,0.00030494,2]
[424955438,1781347841000,-1417.0,0.00030577,2]
[424955439,1781347841000,-186.0,0.00030577,2]
[424955447,1781347841000,-326.8984097,0.00030959,2]
[424955387,1781347841000,-160.0,0.00029227,4]
[424955416,1781347841000,-457.708004,0.00030137,2]
[424955383,1781347841000,-250.825505,0.00028861,10]
[424955353,1781347841000,-250.0,0.0002783,10]
[424955380,1781347841000,-588.9027814,0.00028644,2]
[424955355,1781347841000,-386.41,0.0002783,10]
[424955450,1781347841000,-326.7384617,0.00030959,2]
[424955357,1781347841000,-161.5857587,0.00027898,2]
[424955359,1781347841000,-193.43868248,0.00027898,2]
[424955360,1781347841000,-219.2142407,0.00027898,2]
[424955364,1781347841000,-306.06837268,0.00027898,2]
[424955351,1781347841000,-168.053476,0.000278,5]
[424955349,1781347841000,-588.9027814,0.00027739,2]
[424955362,1781347841000,-394.58563326,0.00027898,2]
[424955366,1781347841000,-4146.9866284,0.000279,2]
[424955367,1781347841000,-290.56351129,0.00027977,2]
[424955369,1781347841000,-21907.17814859,0.00028,2]
[424955370,1781347841000,-151.0,0.00028,7]
[424955371,1781347841000,-151.0,0.00028,7]
[424955384,1781347841000,-347.84143883,0.00029214,2]
[424955375,1781347841000,-150.14,0.00028453,120]
[424955377,1781347841000,-151.0,0.000285,7]
[424955376,1781347841000,-28148.294091,0.000285,2]
[424955374,1781347841000,-209.105658,0.00028296,2]
[424955373,1781347841000,-300.0,0.00028,120]
[424955368,1781347841000,-239149.47913502,0.00028,2]
[424955378,1781347841000,-600.0,0.00028559,30]
[424955379,1781347841000,-306.5009,0.000286,3]
[424955381,1781347841000,-1000.0,0.00028767,40]
[424955391,1781347841000,-160.0,0.00029227,5]
[424955393,1781347841000,-151.0,0.000293,13]
[424955394,1781347841000,-209.105658,0.00029395,2]
[424955396,1781347841000,-159.19,0.00029507,3]
[424955398,1781347841000,-349.4426335,0.00029669,2]
[424955382,1781347841000,-151.0,0.000288,18]
[424955372,1781347841000,-260.757001,0.00028,7]
[424955452,1781347841000,-326.7384617,0.00030959,2]
[424955475,1781347841000,-455.8645025,0.0003211,2]
[424955456,1781347841000,-326.7384617,0.00030959,2]
[424955523,1781347841000,-500.0,0.00032876,2]
[424955524,1781347841000,-500.0,0.00032876,2]
[424955526,1781347841000,-500.0,0.00032876,2]
[424955528,1781347841000,-500.0,0.00032876,2]
[424955530,1781347841000,-500.0,0.00032876,2]
[424955541,1781347841000,-180.0,0.00033,120]
[424955539,1781347841000,-500.0,0.00032877,12]
[424955532,1781347841000,-500.0,0.00032876,2]
[424955534,1781347841000,-515.36682833,0.00032876,2]
[424955535,1781347841000,-187.56392567,0.00032877,2]
[424955537,1781347841000,-500.0,0.00032877,10]
[424955543,1781347841000,-298.37647419,0.000332,117]
[424955544,1781347841000,-1980.0,0.00033424,120]
[424955546,1781347841000,-500.0,0.00033425,14]
[424955550,1781347841000,-186.0,0.00033577,2]
[424955555,1781347841000,-1980.0,0.00033972,120]
[424955553,1781347841000,-5627.658818,0.000339,2]
[424955454,1781347841000,-326.7384617,0.00030959,2]
[424955548,1781347841000,-1417.0,0.00033577,2]
[424955566,1781347841000,-769.38344291,0.00034788,120]
[424955568,1781347841000,-5000.0,0.000348,30]
[424955560,1781347841000,-1980.0,0.0003452,120]
[424955557,1781347841000,-355.0,0.00034246,2]
[424955564,1781347841000,-18014.34469905,0.00034788,120]
[424955570,1781347841000,-417.15472785,0.000348,120]
[424955562,1781347841000,-864.0,0.00034556,30]
[424955571,1781347841000,-809.55280375,0.00034849,120]
[424955573,1781347841000,-158.8359288,0.000349,18]
[424955575,1781347841000,-200.014272,0.000349,120]
[424955521,1781347841000,-500.0,0.00032876,2]
[424955519,1781347841000,-500.0,0.00032876,2]
[424955551,1781347841000,-250.0,0.00033861,32]
[424955511,1781347841000,-500.0,0.00032876,2]
[424955515,1781347841000,-500.0,0.00032876,2]
[424955458,1781347841000,-720.0,0.00031415,30]
[424955448,1781347841000,-457.708004,0.00030959,2]
[424955469,1781347841000,-457.708004,0.0003211,2]
[424955459,1781347841000,-154.72,0.00031544,2]
[424955461,1781347841000,-360.90260982,0.00031586,2]
[424955467,1781347841000,-457.708004,0.0003211,2]
[424955465,1781347841000,-457.7080043,0.0003211,2]
[424955463,1781347841000,-209.105658,0.00031592,2]
[424955473,1781347841000,-457.708004,0.0003211,2]
[424955471,1781347841000,-456.8501494,0.0003211,2]
[424955485,1781347841000,-326.7384617,0.0003211,2]
[424955487,1781347841000,-326.7384617,0.0003211,2]
[424955489,1781347841000,-326.7384617,0.0003211,2]
[424955492,1781347841000,-326.6035524,0.0003211,2]
[424955559,1781347841000,-360.3962221,0.0003452,3]
[424955490,1781347841000,-326.7384617,0.0003211,2]
[424955517,1781347841000,-500.0,0.00032876,2]
[424955494,1781347841000,-336.5604384,0.0003211,2]
[424955513,1781347841000,-500.0,0.00032876,2]
[424955509,1781347841000,-500.0,0.00032876,2]
[424955507,1781347841000,-500.0,0.00032876,2]
[424955502,1781347841000,-22518.635272,0.000325,2]
[424955506,1781347841000,-1980.0,0.00032876,120]
[424955504,1781347841000,-1501.29295429,0.000328,7]